bitfinex-derivatives/quotes_SOLF0:USTF0_20251119
["timestamp","ask_amount","ask_price","bid_price","bid_amount"]
[1763530602960,2.95,137.66,137.61,5.54453235]
[1763530603152,0.04613251,137.65,137.58,3.28]
[1763530603355,0.04613251,137.65,137.6,3.28]
[1763530603569,0.04613251,137.65,137.63,3.28]
[1763530603757,0.04613251,137.65,137.64,5.5459356]
[1763530604362,0.04613251,137.65,137.64,8.8259356]
[1763530605367,6.5408,137.7,137.65,3.28]
[1763530605558,2.95,137.76,137.67,3.28]
[1763530605754,2.95,137.76,137.66,5.5459356]
[1763530605755,6.5386,137.75,137.69,3.28]
[1763530605964,9.4886,137.75,137.7,5.5459356]
[1763530606165,9.4886,137.75,137.71,5.5459356]
[1763530606371,0.05134026,137.74,137.72,5.59344258]
[1763530606674,0.05134026,137.74,137.72,0.04750698]
[1763530608262,6.59034026,137.74,137.72,0.04750698]
[1763530608660,0.05134026,137.74,137.72,3.32750698]
[1763530608861,0.05134026,137.74,137.73,5.54941021]
[1763530610174,0.05134026,137.74,137.73,8.82941021]
[1763530610576,0.05134026,137.74,137.73,5.54941021]
[1763530611073,3.00134026,137.74,137.73,5.54941021]
[1763530611569,9.54054026,137.74,137.72,0.04750698]
[1763530611967,2.95,137.73,137.72,0.04750698]
[1763530612173,2.95,137.73,137.72,5.60171132]
[1763530612775,9.4901,137.72,137.67,3.28]
[1763530613676,0.05275747,137.71,137.67,3.28]
[1763530614476,0.05275747,137.71,137.68,3.28]
[1763530615283,0.05275747,137.71,137.67,3.28]
[1763530616478,3.00275747,137.71,137.64,12.21641851]
[1763530616684,3.00087505,137.69,137.64,3.28]
[1763530616873,0.0512665,137.68,137.64,3.28]
[1763530618082,9.5430665,137.68,137.64,3.28]
[1763530618584,6.5422,137.67,137.63,3.28]
[1763530619277,3.0012665,137.68,137.63,3.28]
[1763530619475,0.0512665,137.68,137.63,3.28]
[1763530620189,6.5930665,137.68,137.63,3.28]
[1763530620586,9.4927,137.66,137.62,3.28]
[1763530620984,2.95,137.66,137.59,17.37547434]
[1763530621287,0.05192114,137.64,137.6,3.28]
[1763530622493,6.59562114,137.64,137.6,3.28]
[1763530622691,6.59562114,137.64,137.57,13.52908348]
[1763530622692,3.00192114,137.64,137.57,3.28]
[1763530623092,6.5451,137.61,137.57,3.28]
[1763530623392,21.83,137.7,137.53,8.93641851]
[1763530623393,3.0002502,137.6,137.53,8.93641851]
[1763530623689,9.4958,137.6,137.53,3.13]
[1763530623891,0.05334514,137.58,137.53,3.13]
[1763530624087,3.32334514,137.58,137.53,3.13]
[1763530624288,6.5476,137.56,137.5,3.13]
[1763530624496,0.04842855,137.54,137.5,3.13]
[1763530624699,0.04842855,137.54,137.51,8.68174772]
[1763530624897,3.31842855,137.54,137.52,5.55174772]
[1763530625194,3.31842855,137.54,137.48,14.09645585]
[1763530625195,0.04842855,137.54,137.49,3.13]
[1763530625395,0.04842855,137.54,137.51,3.13]
[1763530625595,0.04842855,137.54,137.52,5.55233563]
[1763530625898,0.04842855,137.54,137.51,3.13]
[1763530626093,0.04842855,137.54,137.52,5.54592369]
[1763530626296,0.04842855,137.54,137.51,3.13]
[1763530627194,0.04842855,137.54,137.48,5.16003734]
[1763530627391,0.04842855,137.54,137.49,8.67050362]
[1763530627592,0.04842855,137.54,137.5,5.54050362]
[1763530627792,0.04842855,137.54,137.51,5.54050362]
[1763530628095,0.04842855,137.54,137.49,3.13]
[1763530628287,0.04842855,137.54,137.51,3.13]
[1763530628493,3.27,137.64,137.53,3.13]
[1763530628698,3.27,137.64,137.54,8.66039653]
[1763530628898,3.27,137.64,137.55,5.53039653]
[1763530629101,3.27,137.64,137.54,3.13]
[1763530629294,6.5457,137.6,137.55,5.52948394]
[1763530629501,3.3218425,137.59,137.56,0.04842855]
[1763530629899,3.27,137.57,137.49,3.13]
[1763530630099,3.27,137.57,137.5,5.52906818]
[1763530630301,3.27,137.57,137.49,3.13]
[1763530630506,3.27,137.57,137.5,5.52424787]
[1763530630691,3.27,137.57,137.46,3.13]
[1763530631103,3.27,137.52,137.46,3.13]
[1763530631408,0.05459683,137.51,137.48,5.16003734]
[1763530631594,0.05012147,137.51,137.48,5.16003734]
[1763530631796,0.05012147,137.51,137.49,3.13]
[1763530633104,6.5476,137.56,137.5,8.64511862]
[1763530633404,3.27,137.55,137.48,2.03003734]
[1763530633610,3.27,137.54,137.48,2.03003734]
[1763530633902,3.27,137.54,137.48,5.16003734]
[1763530634103,13.0895,137.62,137.5,3.17660526]
[1763530634104,0.055668,137.52,137.5,3.17660526]
[1763530635208,0.055668,137.52,137.5,0.04660526]
[1763530635407,3.325668,137.52,137.5,0.04660526]
[1763530635598,9.875268,137.52,137.5,0.04660526]
[1763530635799,3.325668,137.52,137.5,0.04660526]
[1763530636107,0.055668,137.52,137.5,0.04660526]
[1763530636601,3.325668,137.52,137.5,0.04660526]
[1763530636806,9.875168,137.52,137.5,0.04660526]
[1763530638008,3.27,137.51,137.5,0.04660526]
[1763530638198,3.27,137.49,137.48,2.03003734]
[1763530638393,0.055668,137.52,137.49,3.13]
[1763530638999,3.27,137.59,137.51,5.15905583]
[1763530639204,3.27,137.59,137.52,3.13]
[1763530639812,38.82,137.63,137.49,3.13]
[1763530639813,3.27,137.58,137.49,3.13]
[1763530640000,0.05384902,137.55,137.52,0.04958744]
[1763530641011,0.05384902,137.55,137.52,3.17958744]
[1763530641306,3.32384902,137.55,137.52,0.04958744]
[1763530641511,3.27,137.53,137.52,0.04958744]
[1763530641702,3.27,137.53,137.48,2.03003734]
[1763530642209,6.5499,137.51,137.48,2.03003734]
[1763530642406,3.27,137.53,137.48,5.16003734]
[1763530642803,6.60319466,137.52,137.48,5.16003734]
[1763530643307,9.60319466,137.52,137.48,2.03003734]
[1763530643714,6.5499,137.51,137.48,2.03003734]
[1763530644409,9.5504,137.5,137.48,2.03003734]
[1763530644613,3.0,137.49,137.48,2.03003734]
[1763530644908,6.5504,137.5,137.48,2.03003734]
[1763530645115,3.0,137.51,137.48,2.03003734]
[1763530645517,3.0,137.5,137.41,2.98]
[1763530645813,5.15905583,137.55,137.41,2.98]
[1763530645814,0.05227607,137.47,137.43,2.98]
[1763530646005,0.0466499,137.46,137.45,2.98]
[1763530646200,0.05289783,137.47,137.45,8.4819001]
[1763530646414,0.05415605,137.47,137.45,2.98]
[1763530646602,3.0,137.53,137.47,2.98]
[1763530647110,3.0,137.56,137.48,8.4789172]
[1763530647310,9.548,137.55,137.49,5.4989172]
[1763530647504,3.0,137.55,137.48,2.98]
[1763530647707,0.05015795,137.53,137.5,3.03491498]
[1763530648319,3.0,137.51,137.5,0.05491498]
[1763530648521,27.5495,137.52,137.5,0.05491498]
[1763530648716,3.0,137.51,137.45,2.98]
[1763530649116,6.5508,137.49,137.45,2.98]
[1763530649316,3.0,137.51,137.45,2.98]
[1763530649814,3.05139409,137.49,137.42,2.98]
[1763530650018,3.0,137.53,137.44,2.98]
[1763530650222,3.0,137.53,137.46,2.98]
[1763530650523,0.05521682,137.5,137.46,2.98]
[1763530650718,3.0,137.48,137.41,2.98]
[1763530651017,0.05215067,137.46,137.42,8.4764634]
[1763530651221,3.05215067,137.46,137.37,2.98]
[1763530651517,3.05070612,137.43,137.38,5.49840619]
[1763530651716,0.05035534,137.42,137.35,27.98]
[1763530652014,3.0,137.4,137.36,5.50003186]
[1763530652220,3.0,137.4,137.35,25.0]
[1763530652421,3.05004215,137.39,137.35,25.0]
[1763530652612,6.5562,137.38,137.35,25.0]
[1763530652812,9.5562,137.38,137.35,25.0]
[1763530653526,3.0,137.38,137.35,25.0]
[1763530653821,0.05004215,137.39,137.35,25.0]
[1763530653822,0.05004215,137.39,137.35,28.22]
[1763530655016,3.14004215,137.39,137.35,25.0]
[1763530655223,3.09,137.36,137.35,5.742e-05]
[1763530655615,0.05004215,137.39,137.35,3.22005742]
[1763530657128,0.05004215,137.39,137.36,5.52267919]
[1763530657323,0.05004215,137.39,137.35,3.22005742]
[1763530657525,0.05004215,137.39,137.37,3.22]
[1763530657824,0.05004215,137.39,137.38,5.5240742]
[1763530658023,0.05004215,137.39,137.38,8.7440742]
[1763530658221,0.05004215,137.39,137.36,3.22]
[1763530658420,0.05004215,137.39,137.37,5.52434286]
[1763530658722,0.05004215,137.39,137.35,5.742e-05]
[1763530659132,0.05004215,137.39,137.36,8.74733707]
[1763530659428,0.05004215,137.39,137.38,3.22]
[1763530659626,0.05004215,137.39,137.38,8.74733707]
[1763530659824,9.6423,137.46,137.38,8.74733707]
[1763530660121,9.6423,137.46,137.39,5.52733707]
[1763530660321,3.09,137.49,137.41,3.22]
[1763530660529,3.09,137.49,137.42,5.52733707]
[1763530660819,3.09,137.49,137.43,5.52733707]
[1763530661022,0.05096339,137.47,137.44,0.05495876]
[1763530661527,6.60286339,137.47,137.44,0.05495876]
[1763530661725,3.14096339,137.47,137.44,0.05495876]
[1763530661929,3.09,137.45,137.44,0.05495876]
[1763530662424,0.05096339,137.47,137.44,8.8190468]
[1763530662626,0.05096339,137.47,137.45,5.54408804]
[1763530662828,0.05096339,137.47,137.44,3.27495876]
[1763530663027,0.05096339,137.47,137.45,5.54393233]
[1763530663229,0.05096339,137.47,137.44,3.27495876]
[1763530663426,0.05096339,137.47,137.45,5.54475612]
[1763530663626,0.05096339,137.47,137.46,5.54475612]
[1763530663933,0.05096339,137.47,137.44,0.05495876]
[1763530664126,0.05096339,137.47,137.45,5.54960299]
[1763530664327,0.05096339,137.47,137.46,5.55521766]
[1763530664821,0.05096339,137.47,137.46,15.46440581]
[1763530665223,3.09,137.54,137.46,5.55521766]
[1763530665431,3.09,137.54,137.45,6.68918815]
[1763530665432,3.09,137.48,137.47,5.55521766]
[1763530666622,0.04898165,137.49,137.47,5.55521766]
[1763530666930,0.04898165,137.49,137.48,5.55521766]
[1763530669426,39.0,137.59,137.48,15.46440581]
[1763530669427,3.09,137.55,137.48,15.46440581]
[1763530669731,3.09,137.55,137.49,12.24440581]
[1763530669932,3.09,137.55,137.5,5.55521766]
[1763530670132,3.09,137.55,137.51,5.55521766]
[1763530670331,3.09,137.55,137.52,5.55521766]
[1763530670537,3.09,137.55,137.49,6.68918815]
[1763530670736,0.05224316,137.53,137.51,0.04891867]
[1763530671029,0.05224316,137.53,137.52,5.56982747]
[1763530671229,3.09,137.52,137.47,6.68918815]
[1763530671434,3.09,137.52,137.45,8.93641851]
[1763530671435,3.09,137.52,137.45,6.68918815]
[1763530671639,3.09,137.52,137.43,6.68918815]
[1763530671829,3.09,137.52,137.41,6.68918815]
[1763530672031,3.09,137.49,137.41,9.90918815]
[1763530672236,3.09,137.45,137.44,0.04839134]
[1763530673232,9.6426,137.45,137.44,0.04839134]
[1763530675128,6.5545,137.41,137.38,6.68918815]
[1763530675327,6.5545,137.41,137.38,9.90918815]
[1763530676030,6.6076021,137.41,137.38,9.96471192]
[1763530676731,6.6076021,137.41,137.39,3.22]
[1763530677430,0.0531021,137.41,137.39,3.22]
[1763530678230,0.0531021,137.41,137.38,6.74471192]
[1763530678440,0.0531021,137.41,137.39,3.22]
[1763530683135,0.0531021,137.41,137.4,5.53115802]
[1763530683843,0.0531021,137.41,137.39,3.22]
[1763530685746,3.3331021,137.41,137.38,0.05552377]
[1763530686347,0.0531021,137.41,137.38,0.05552377]
[1763530686543,0.0531021,137.41,137.38,3.27552377]
[1763530687049,6.5553,137.4,137.38,0.05552377]
[1763530687550,3.3331021,137.41,137.38,0.05552377]
[1763530687955,9.835,137.4,137.38,0.05552377]
[1763530688145,3.28,137.39,137.38,0.05552377]
[1763530689149,6.555,137.4,137.38,0.05552377]
[1763530689844,9.835,137.4,137.38,0.05552377]
[1763530690157,0.0531021,137.41,137.38,3.27552377]
[1763530690349,3.3331021,137.41,137.38,0.05552377]
[1763530690544,0.0531021,137.41,137.38,3.27552377]
[1763530692254,0.0531021,137.41,137.39,3.22]
[1763530692447,3.28,137.48,137.4,3.22]
[1763530692845,6.5527,137.45,137.4,3.22]
[1763530693051,3.28,137.48,137.4,3.22]
[1763530693257,3.28,137.48,137.37,6.76152874]
[1763530693456,9.8343,137.42,137.41,0.04693518]
[1763530693748,9.8343,137.42,137.4,0.05140584]
[1763530695554,0.05115764,137.43,137.4,3.27140584]
[1763530695756,0.05115764,137.43,137.4,0.05140584]
[1763530695955,3.33115764,137.43,137.4,0.05140584]
[1763530696150,0.05115764,137.43,137.4,3.27140584]
[1763530696352,0.05115764,137.43,137.4,10.03293458]
[1763530696553,0.05115764,137.43,137.41,3.22]
[1763530697252,3.28,137.47,137.41,3.22]
[1763530697454,3.28,137.47,137.41,9.98152874]
[1763530697654,9.8317,137.47,137.41,9.98152874]
[1763530697858,9.8317,137.47,137.42,3.22]
[1763530698058,6.5517,137.47,137.43,3.22]
[1763530698358,0.05320784,137.46,137.44,0.05400654]
[1763530698558,0.05320784,137.46,137.44,3.27400654]
[1763530699449,3.28,137.53,137.45,3.22]
[1763530700262,3.28,137.53,137.45,9.98152874]
[1763530700472,0.05054093,137.5,137.48,3.26865288]
[1763530700856,3.33054093,137.5,137.48,0.04865288]
[1763530701253,3.28,137.49,137.48,0.04865288]
[1763530701962,3.28,137.47,137.42,3.22]
[1763530702255,3.28,137.47,137.4,6.76152874]
[1763530702461,3.28,137.47,137.38,9.73152874]
[1763530702960,6.5541,137.42,137.41,0.04634848]
[1763530703150,9.8141,137.42,137.41,0.04634848]
[1763530703958,3.26,137.42,137.41,0.04634848]
[1763530704262,3.30593587,137.44,137.41,0.04634848]
[1763530704664,9.8137,137.43,137.41,0.04634848]
[1763530705051,6.5537,137.43,137.41,0.04634848]
[1763530705655,0.04593587,137.44,137.41,3.01634848]
[1763530706771,0.04593587,137.44,137.41,9.77787722]
[1763530706957,0.04593587,137.44,137.42,2.97]
[1763530709262,3.30593587,137.44,137.41,0.04634848]
[1763530709764,3.26,137.42,137.35,6.76158616]
[1763530710361,6.5557,137.39,137.35,6.76158616]
[1763530710753,3.26,137.42,137.35,5.742e-05]
[1763530710952,3.26,137.39,137.37,0.04573465]
[1763530711153,3.31413694,137.39,137.37,0.05449837]
[1763530711858,9.87003694,137.39,137.37,0.05449837]
[1763530712960,3.31413694,137.39,137.37,0.05449837]
[1763530713354,9.7159,137.38,137.37,0.05449837]
[1763530714667,6.5569,137.36,137.35,5.742e-05]
[1763530715157,6.5582,137.34,137.32,0.18836]
[1763530715556,9.77009919,137.34,137.32,0.23818571]
[1763530715958,3.16,137.33,137.32,8.571e-05]
[1763530716156,0.05189919,137.34,137.32,8.571e-05]
[1763530716559,0.05189919,137.34,137.32,3.08008571]
[1763530716964,0.05189919,137.34,137.32,8.571e-05]
[1763530717863,0.05189919,137.34,137.32,3.08008571]
[1763530718261,3.16,137.39,137.33,3.08]
[1763530718769,9.7161,137.38,137.33,3.08]
[1763530719374,0.05550803,137.37,137.34,3.12955065]
[1763530719573,3.21550803,137.37,137.34,0.04955065]
[1763530720873,9.7173,137.36,137.34,0.04955065]
[1763530721168,0.05550803,137.37,137.34,0.04955065]
[1763530721370,0.05550803,137.37,137.34,3.12955065]
[1763530723567,105.0962,137.45,137.35,3.08]
[1763530723769,6.5537,137.43,137.35,3.08]
[1763530723972,6.5537,137.43,137.36,3.08]
[1763530724273,101.9389,137.44,137.36,3.08]
[1763530724472,0.04777178,137.41,137.39,0.05265777]
[1763530725060,0.04777178,137.41,137.39,3.13265777]
[1763530726069,3.20777178,137.41,137.39,0.05265777]
[1763530726574,9.76257178,137.41,137.39,0.05265777]
[1763530727864,0.04777178,137.41,137.39,3.13265777]
[1763530728777,3.16,137.45,137.39,3.13265777]
[1763530729479,3.16,137.48,137.39,3.13265777]
[1763530729772,0.04862996,137.45,137.42,3.13481723]
[1763530730774,0.04862996,137.45,137.42,0.05481723]
[1763530730975,105.14312996,137.45,137.42,0.05481723]
[1763530731182,6.5533,137.44,137.42,0.05481723]
[1763530731377,6.5533,137.44,137.34,13.52908348]
[1763530731378,101.95,137.43,137.36,6.76907402]
[1763530731570,3.16,137.41,137.34,6.76907402]
[1763530731776,6.5552,137.4,137.34,9.84907402]
[1763530732072,6.5552,137.4,137.36,3.08]
[1763530732466,0.05413514,137.39,137.37,3.12987761]
[1763530733073,3.16,137.44,137.38,3.08]
[1763530733469,6.5537,137.43,137.38,3.08]
[1763530734072,0.05565468,137.42,137.38,3.08]
[1763530734775,6.60995468,137.42,137.38,3.08]
[1763530734973,0.05565468,137.42,137.38,3.08]
[1763530735479,3.21565468,137.42,137.38,3.08]
[1763530735884,6.5548,137.41,137.38,3.08]
[1763530736280,0.05565468,137.42,137.38,3.08]
[1763530736479,0.05565468,137.42,137.38,9.84907402]
[1763530736685,0.05565468,137.42,137.39,3.08]
[1763530739888,0.05565468,137.42,137.4,6.76907402]
[1763530740086,0.05565468,137.42,137.41,3.08]
[1763530741192,0.05565468,137.42,137.4,3.12853243]
[1763530742889,6.60985468,137.42,137.4,0.04853243]
[1763530744896,0.05565468,137.42,137.4,0.04853243]
[1763530745692,6.60985468,137.42,137.4,0.04853243]
[1763530745894,3.05,137.41,137.4,0.04853243]
[1763530746294,6.60985468,137.42,137.4,0.04853243]
[1763530746505,9.65985468,137.42,137.4,0.04853243]
[1763530749001,6.60985468,137.42,137.4,0.04853243]
[1763530749193,3.05,137.41,137.4,0.04853243]
[1763530751302,6.60985468,137.42,137.4,3.04853243]
[1763530751606,0.05565468,137.42,137.4,3.04853243]
[1763530751795,38.7,137.46,137.42,3.0]
[1763530752102,101.8958,137.5,137.42,9.76907402]
[1763530752103,3.05,137.48,137.42,9.76907402]
[1763530752800,3.05,137.48,137.42,3.0]
[1763530753104,0.05069796,137.46,137.44,0.05128359]
[1763530753802,3.05,137.53,137.45,3.0]
[1763530753999,38.68,137.54,137.47,3.0]
[1763530754195,45.2285,137.54,137.47,9.76907402]
[1763530754704,45.2285,137.54,137.48,9.76907402]
[1763530754997,0.04845255,137.52,137.5,0.0488463]
[1763530755394,0.04845255,137.52,137.5,3.0488463]
[1763530755593,3.05,137.59,137.51,3.0]
[1763530755799,9.596,137.59,137.51,3.0]
[1763530755996,3.05,137.58,137.51,3.0]
[1763530756401,6.5476,137.56,137.51,3.0]
[1763530756701,3.10012359,137.55,137.52,0.05164237]
[1763530757001,0.05012359,137.55,137.52,3.05164237]
[1763530758112,106.99508593,137.62,137.52,3.05164237]
[1763530758113,3.05,137.63,137.53,101.8699]
[1763530758298,3.05,137.63,137.55,3.0]
[1763530758608,38.68,137.66,137.55,3.0]
[1763530758609,41.73,137.66,137.55,3.0]
[1763530758901,38.68,137.67,137.56,3.0]
[1763530759106,3.05,137.7,137.59,3.0]
[1763530759411,0.04874232,137.66,137.63,0.05197391]
[1763530759706,38.68,137.71,137.63,3.05197391]
[1763530759910,3.05,137.74,137.63,3.05197391]
[1763530759911,104.7727,137.73,137.63,3.05197391]
[1763530760301,3.05,137.73,137.63,3.0]
[1763530760506,101.7311,137.72,137.63,3.0]
[1763530760700,3.09649127,137.69,137.66,0.0535911]
[1763530761502,0.04649127,137.69,137.66,0.0535911]
[1763530761903,108.301,137.68,137.66,0.0535911]
[1763530762108,111.351,137.68,137.66,0.0535911]
[1763530762310,9.5916,137.68,137.66,0.0535911]
[1763530763305,111.352,137.68,137.66,0.0535911]
[1763530764005,3.05,137.67,137.66,0.0535911]
[1763530764212,9.5925,137.67,137.6,3.16]
[1763530764812,6.5429,137.66,137.6,3.16]
[1763530765306,3.10504281,137.64,137.62,0.04769622]
[1763530766910,104.8614,137.61,137.56,3.16]
[1763530767215,101.8569,137.55,137.49,3.16]
[1763530767513,101.8563,137.55,137.49,3.16]
[1763530767915,0.05224262,137.53,137.51,0.05389613]
[1763530768507,3.05,137.52,137.51,0.05389613]
[1763530769113,9.5998,137.51,137.46,3.16]
[1763530769318,104.9447,137.5,137.42,3.16]
[1763530769507,6.551,137.49,137.42,3.16]
[1763530770012,3.05,137.48,137.44,0.05534562]
[1763530770316,9.65763887,137.47,137.44,0.05534562]
[1763530770518,3.05,137.46,137.44,0.05534562]
[1763530771615,0.05593887,137.47,137.44,0.05534562]
[1763530771806,3.10593887,137.47,137.44,0.05534562]
[1763530773114,0.05593887,137.47,137.44,3.21534562]
[1763530773317,0.05593887,137.47,137.44,0.05534562]
[1763530773714,3.19593887,137.47,137.44,0.05534562]
[1763530775719,9.74793887,137.47,137.44,0.05534562]
[1763530776123,3.19593887,137.47,137.44,0.05534562]
[1763530777422,0.05593887,137.47,137.44,0.05534562]
[1763530777919,3.19593887,137.47,137.44,0.05534562]
[1763530778120,3.19593887,137.47,137.44,3.33534562]
[1763530778121,0.05593887,137.47,137.44,3.33534562]
[1763530778522,3.14,137.53,137.45,3.28]
[1763530779311,3.14,137.53,137.46,3.28]
[1763530779510,0.04629553,137.51,137.48,3.33257649]
[1763530779725,3.14,137.56,137.48,3.33257649]
[1763530779913,9.6877,137.56,137.48,9.88347649]
[1763530780118,9.6877,137.56,137.49,3.28]
[1763530780325,3.14,137.56,137.49,3.28]
[1763530780526,3.14,137.54,137.45,3.28]
[1763530780828,0.04608997,137.51,137.48,3.3299072]
[1763530781413,3.18608997,137.51,137.48,0.0499072]
[1763530781619,3.14,137.5,137.48,0.0499072]
[1763530781825,105.0432,137.49,137.41,3.28]
[1763530782823,0.04793601,137.46,137.44,0.04986808]
[1763530783321,101.886,137.51,137.44,3.32986808]
[1763530783518,105.026,137.51,137.44,3.32986808]
[1763530783715,3.14,137.49,137.44,0.04986808]
[1763530783916,3.14,137.49,137.44,3.32986808]
[1763530784120,9.6909,137.49,137.44,3.32986808]
[1763530784329,3.19126229,137.48,137.44,0.04986808]
[1763530784714,9.74266229,137.48,137.44,0.04986808]
[1763530785226,3.19126229,137.48,137.44,0.04986808]
[1763530785524,9.74266229,137.48,137.44,0.04986808]
[1763530785732,105.10156229,137.48,137.44,0.04986808]
[1763530785925,6.5524,137.46,137.44,0.04986808]
[1763530786431,3.19126229,137.48,137.44,0.04986808]
[1763530786624,6.5518,137.47,137.44,0.04986808]
[1763530786933,3.14,137.47,137.44,0.04986808]
[1763530787115,9.6923,137.46,137.44,0.04986808]
[1763530787315,3.14,137.45,137.44,0.04986808]
[1763530788528,0.05126229,137.48,137.44,0.04986808]
[1763530788724,3.14,137.47,137.44,0.04986808]
[1763530789230,0.05126229,137.48,137.44,0.04986808]
[1763530789231,3.19126229,137.48,137.44,0.04986808]
[1763530789827,9.74276229,137.48,137.44,0.04986808]
[1763530790030,3.19126229,137.48,137.44,0.04986808]
[1763530790537,9.6923,137.46,137.44,0.04986808]
[1763530791229,3.14,137.45,137.44,0.04986808]
[1763530791436,6.5533,137.44,137.37,3.28]
[1763530792036,9.6933,137.44,137.37,3.28]
[1763530792434,0.05140707,137.42,137.39,0.05100635]
[1763530793334,0.05140707,137.42,137.39,3.33100635]
[1763530794726,0.05140707,137.42,137.41,3.28]
[1763530794925,3.14,137.47,137.41,3.28]
[1763530795436,3.14,137.47,137.41,9.8341]
[1763530795636,3.14,137.5,137.41,3.28]
[1763530795931,0.04830958,137.47,137.45,3.28]
[1763530796138,3.14,137.53,137.45,3.28]
[1763530796435,6.5494,137.52,137.45,3.28]
[1763530796636,3.14,137.52,137.45,3.28]
[1763530796936,3.14,137.52,137.42,41.9]
[1763530796937,6.5508,137.49,137.42,41.9]
[1763530797136,0.04949628,137.47,137.44,0.05161629]
[1763530797538,0.04949628,137.47,137.44,3.33161629]
[1763530799245,0.04949628,137.47,137.44,0.05161629]
[1763530799540,3.18949628,137.47,137.44,0.05161629]
[1763530800736,0.04949628,137.47,137.44,0.05161629]
[1763530800943,3.18949628,137.47,137.44,0.05161629]
[1763530801133,0.04949628,137.47,137.44,3.33161629]
[1763530801537,3.18949628,137.47,137.44,0.05161629]
[1763530802948,9.74109628,137.47,137.44,0.05161629]
[1763530803136,0.04949628,137.47,137.44,3.33161629]
[1763530803536,0.04949628,137.47,137.46,9.8021]
[1763530803745,0.04949628,137.47,137.44,3.30161629]
[1763530804851,0.04949628,137.47,137.46,9.8021]
[1763530805042,3.13,137.55,137.46,9.8021]
[1763530805242,3.13,137.54,137.46,9.8021]
[1763530805848,3.13,137.54,137.48,3.25]
[1763530806159,0.04815003,137.52,137.5,3.29925784]
[1763530806354,0.04815003,137.52,137.51,6.82567702]
[1763530806659,3.17815003,137.52,137.51,6.82567702]
[1763530810062,0.04815003,137.52,137.51,6.82567702]
[1763530810764,3.13,137.54,137.51,6.82567702]
[1763530810963,3.13,137.54,137.52,6.82567702]
[1763530811262,3.13,137.54,137.53,6.82567702]
[1763530811463,9.6784,137.54,137.53,6.82567702]
[1763530811757,9.6784,137.54,137.53,7.702e-05]
[1763530811964,9.6791,137.53,137.5,0.04925784]
[1763530812161,3.13,137.53,137.5,0.04925784]
[1763530812866,9.6795,137.52,137.5,0.04925784]
[1763530814160,3.13,137.52,137.5,0.04925784]
[1763530814866,3.13,137.51,137.5,0.04925784]
[1763530817967,3.18478183,137.52,137.5,0.04925784]
[1763530818561,3.13,137.51,137.5,0.04925784]
[1763530824674,3.0,137.51,137.5,0.04925784]
[1763530825169,9.5511,137.48,137.47,6.77555357]
[1763530825474,9.5511,137.48,137.45,8.93641851]
[1763530825475,9.5511,137.48,137.45,6.77555357]
[1763530825678,3.0,137.47,137.45,6.77555357]
[1763530825976,3.0,137.47,137.43,6.77555357]
[1763530826175,0.05556037,137.46,137.44,0.05352608]
[1763530826375,9.60786037,137.46,137.44,0.05352608]
[1763530826579,3.0,137.45,137.44,0.05352608]
[1763530826878,3.0,137.45,137.38,3.24]
[1763530826879,3.0,137.45,137.4,10.01555357]
[1763530827078,3.0,137.44,137.4,6.77555357]
[1763530827372,3.0,137.44,137.39,10.01555357]
[1763530827676,3.04861746,137.43,137.4,0.05332241]
[1763530827870,3.0,137.41,137.4,0.05332241]
[1763530829373,38.60861746,137.43,137.4,3.29332241]
[1763530829674,0.04861746,137.43,137.4,10.06887598]
[1763530829871,0.04861746,137.43,137.41,3.24]
[1763530830479,0.04861746,137.43,137.4,6.82887598]
[1763530830772,0.04861746,137.43,137.4,10.06887598]
[1763530830974,3.04861746,137.43,137.4,0.05332241]
[1763530831372,9.60231746,137.43,137.4,0.05332241]
[1763530831791,3.04861746,137.43,137.4,0.05332241]
[1763530831980,3.0,137.4,137.36,6.77555357]
[1763530832274,3.0,137.36,137.32,6.77555357]
[1763530832480,3.0,137.36,137.31,10.01555357]
[1763530832877,0.05212966,137.35,137.31,10.01555357]